bitfinex-derivatives/quotes_SOLF0:USTF0_20250311
["timestamp","ask_amount","ask_price","bid_price","bid_amount"]
[1741703450402,274.88,119.93,119.84,28.08535853]
[1741703450796,0.05636556,119.9,119.88,28.08535853]
[1741703450996,28.08535853,120.01,119.89,59.76]
[1741703451192,28.08535853,120.01,119.9,28.08535853]
[1741703451699,28.08535853,119.99,119.89,63.7899]
[1741703451897,36.42185853,119.99,119.89,63.7899]
[1741703452103,0.05669622,119.93,119.91,0.06341165]
[1741703453599,59.76,119.92,119.91,0.00279207]
[1741703454101,0.05669622,119.93,119.91,0.00279207]
[1741703456204,0.05669622,119.93,119.92,8.3412]
[1741703456404,0.05669622,119.93,119.91,0.00279207]
[1741703456805,8.39729622,119.93,119.91,0.00279207]
[1741703457005,0.05669622,119.93,119.91,0.00279207]
[1741703457307,8.3412,119.92,119.91,0.00279207]
[1741703457707,59.81669622,119.93,119.91,0.00279207]
[1741703458311,0.05669622,119.93,119.91,0.00279207]
[1741703458804,8.39769622,119.93,119.91,0.00279207]
[1741703459006,0.05669622,119.93,119.91,0.00279207]
[1741703460401,40.24,119.95,119.91,0.00279207]
[1741703461010,20.2378,119.95,119.94,8.3398]
[1741703461309,15.47,120.0,119.94,28.08535853]
[1741703461507,15.47,120.0,119.99,8.3363]
[1741703461707,0.0625531,119.98,119.94,28.08535853]
[1741703461908,15.47,120.0,119.94,28.08535853]
[1741703462112,15.47,120.0,119.95,0.06077121]
[1741703463010,8.3374,119.98,119.95,0.06077121]
[1741703463217,0.06395436,119.99,119.95,0.06077121]
[1741703463715,8.3384,119.96,119.95,0.06077121]
[1741703463915,28.08535853,119.98,119.86,362.96535853]
[1741703464114,28.08535853,119.94,119.81,59.74]
[1741703464320,87.82535853,119.94,119.81,59.74]
[1741703464504,59.74,119.94,119.84,28.08535853]
[1741703464705,61.42535853,119.97,119.86,28.08535853]
[1741703464908,61.42535853,119.97,119.86,87.82535853]
[1741703465110,8.39971857,119.93,119.9,0.05462427]
[1741703465306,28.1444771,119.93,119.82,28.08535853]
[1741703465507,28.08535853,119.89,119.78,208.46566538]
[1741703465716,8.3472,119.84,119.74,28.08535853]
[1741703465911,28.08535853,119.87,119.74,28.08535853]
[1741703466215,28.08535853,119.87,119.76,28.08535853]
[1741703466417,59.76,119.88,119.76,28.08535853]
[1741703466608,0.05322228,119.83,119.78,28.08535853]
[1741703466815,0.05322228,119.83,119.78,87.84535853]
[1741703467016,0.05322228,119.83,119.78,59.76]
[1741703467219,0.05322228,119.83,119.75,4.2591]
[1741703467512,87.82535853,119.83,119.74,8.3815]
[1741703467717,0.05981454,119.8,119.74,4.1044]
[1741703468015,0.05981454,119.8,119.76,28.08535853]
[1741703468220,59.74,119.87,119.78,28.08535853]
[1741703468415,63.9017,119.92,119.82,28.08535853]
[1741703468615,3.67,119.86,119.82,28.08535853]
[1741703468814,303.24535853,119.95,119.84,28.08535853]
[1741703469016,8.1772,119.96,119.86,28.08535853]
[1741703469317,33.34,119.97,119.91,28.08535853]
[1741703469518,0.06207494,119.92,119.9,0.05497359]
[1741703469913,28.08535853,119.96,119.87,4.3709]
[1741703470110,0.05303919,119.92,119.9,0.06290503]
[1741703470316,33.34,119.97,119.9,0.06290503]
[1741703470512,8.3385,119.96,119.9,0.06290503]
[1741703470716,28.08535853,119.95,119.9,0.06290503]
[1741703470922,28.08535853,119.93,119.83,4.4045]
[1741703471116,28.08535853,119.95,119.85,28.08535853]
[1741703471316,61.42535853,119.97,119.85,28.08535853]
[1741703471514,33.34,119.97,119.87,28.08535853]
[1741703471716,33.34,119.97,119.86,59.76]
[1741703471920,28.08535853,119.93,119.84,4.298]
[1741703472117,28.08535853,119.89,119.82,8.348]
[1741703472320,28.08535853,119.89,119.78,4.298]
[1741703472518,28.08535853,119.91,119.79,28.08535853]
[1741703472718,28.08535853,119.91,119.81,28.08535853]
[1741703473120,36.42735853,119.91,119.81,28.08535853]
[1741703473318,0.05749557,119.87,119.81,28.08535853]
[1741703473623,0.05749557,119.87,119.81,59.74]
[1741703473821,0.05749557,119.87,119.78,4.298]
[1741703474020,28.08535853,119.9,119.78,36.40355853]
[1741703474221,339.3495,119.92,119.8,28.08535853]
[1741703474517,0.05258488,119.85,119.81,59.74]
[1741703474717,0.05258488,119.85,119.78,36.40355853]
[1741703474919,15.5,119.91,119.8,28.08535853]
[1741703475119,0.06038455,119.83,119.8,28.08535853]
[1741703475320,15.5,119.91,119.82,56.17071706]
[1741703475620,15.5,119.91,119.89,28.08535853]
[1741703475818,4.0979,120.01,119.89,28.08535853]
[1741703475819,0.56247,119.99,119.9,59.74]
[1741703476024,0.56247,119.99,119.95,28.08535853]
[1741703476228,0.56247,119.99,119.98,8.337]
[1741703476523,0.56247,119.99,119.96,0.05714697]
[1741703477223,8.3371,119.98,119.96,0.05714697]
[1741703477517,28.64782853,119.99,119.96,0.05714697]
[1741703477723,0.56247,119.99,119.96,4.697e-05]
[1741703478230,30.94247,119.99,119.96,4.697e-05]
[1741703479115,0.06270323,120.0,119.97,28.08535853]
[1741703479421,40.515,120.01,119.96,4.05234697]
[1741703479621,32.18,120.01,119.96,4.05234697]
[1741703480619,0.06267391,120.0,119.97,4.2564]
[1741703481120,0.06267391,120.0,119.99,28.08535853]
[1741703481319,4.4083,120.08,119.99,28.08535853]
[1741703481521,4.2107,120.11,120.01,28.08535853]
[1741703481721,4.2107,120.11,120.03,28.08535853]
[1741703481919,2.08265064,120.1,120.01,28.08535853]
[1741703482115,8.3314,120.07,120.0,59.7]
[1741703482321,4.2107,120.11,120.01,28.08535853]
[1741703482521,0.05992144,120.05,120.02,0.05732228]
[1741703482724,0.05992144,120.05,120.02,8.3338]
[1741703482914,4.2107,120.11,120.02,0.05394301]
[1741703483113,0.05821274,120.05,120.02,0.05394301]
[1741703483329,8.6254,120.13,120.03,28.08535853]
[1741703483517,2.08247203,120.12,120.03,28.08535853]
[1741703483824,28.08535853,120.2,120.09,28.08535853]
[1741703484022,6.79499733,120.19,120.11,28.08535853]
[1741703484223,4.1238,120.21,120.13,28.08535853]
[1741703484526,0.05502322,120.18,120.16,0.05699286]
[1741703485120,3.32,120.2,120.17,28.08535853]
[1741703485426,3.32,120.2,120.16,0.05699286]
[1741703486028,3.32,120.2,120.16,28.14235139]
[1741703486429,0.05518792,120.19,120.16,0.05699286]
[1741703487028,32.41755853,120.3,120.17,28.08535853]
[1741703487329,12.6473,120.3,120.23,8.3192]
[1741703487522,42.25749079,120.31,120.24,28.08535853]
[1741703487723,4.0431,120.33,120.24,28.08535853]
[1741703488227,0.05782429,120.3,120.27,0.06015012]
[1741703488429,0.05782429,120.3,120.28,59.64]
[1741703488828,0.05782429,120.3,120.28,59.6987756]
[1741703489233,274.72,120.41,120.29,37.25520061]
[1741703489425,4.282,120.41,120.31,37.25520061]
[1741703489735,37.25520061,120.43,120.31,37.25520061]
[1741703489736,4.231,120.44,120.33,37.25520061]
[1741703489933,4.231,120.44,120.34,59.6]
[1741703490136,37.25520061,120.41,120.29,96.85520061]
[1741703490329,37.25520061,120.39,120.29,59.6]
[1741703490628,37.25520061,120.37,120.29,59.6]
[1741703490828,37.25520061,120.39,120.29,59.6]
[1741703491022,37.25520061,120.43,120.33,37.25520061]
[1741703491225,4.231,120.44,120.34,59.58]
[1741703491629,37.25520061,120.43,120.34,59.58]
[1741703491928,0.05953827,120.4,120.37,0.06387376]
[1741703492130,37.25520061,120.39,120.37,7.376e-05]
[1741703492331,37.25520061,120.39,120.29,59.58]
[1741703492529,37.25520061,120.35,120.29,59.58]
[1741703492728,37.25520061,120.37,120.29,59.58]
[1741703492925,274.54,120.39,120.29,59.58]
[1741703493126,37.25520061,120.42,120.31,37.25520061]
[1741703493331,37.25520061,120.4,120.29,96.83520061]
[1741703493531,0.05343837,120.38,120.35,0.05734294]
[1741703495832,8.36283837,120.38,120.35,0.05734294]
[1741703496032,0.05343837,120.38,120.35,0.05734294]
[1741703497332,0.05343837,120.38,120.36,8.3104]
[1741703497530,0.05343837,120.38,120.35,0.05734294]
[1741703498031,0.05343837,120.38,120.35,37.31254355]
[1741703498227,0.05343837,120.38,120.35,0.05734294]
[1741703498428,0.05343837,120.38,120.36,8.3107]
[1741703498624,0.05343837,120.38,120.35,0.05734294]
[1741703499024,8.3107,120.36,120.35,0.05734294]
[1741703499227,0.05343837,120.38,120.35,0.05734294]
[1741703500034,0.05343837,120.38,120.35,8.36834294]
[1741703500334,3.837e-05,120.38,120.35,0.05734294]
[1741703500637,3.837e-05,120.38,120.37,45.56520061]
[1741703500831,4.185,120.47,120.37,96.73520061]
[1741703501037,8.3074,120.41,120.37,67.7898]
[1741703501233,37.25520061,120.46,120.37,59.48]
[1741703501430,4.185,120.47,120.37,59.48]
[1741703501635,4.185,120.47,120.41,8.3068]
[1741703501834,4.185,120.47,120.37,59.48]
[1741703502034,0.05425662,120.45,120.43,0.06086515]
[1741703503240,8.3052,120.44,120.43,0.06086515]
[1741703504137,0.05425662,120.45,120.37,59.48]
[1741703504434,37.25520061,120.46,120.39,8.3082]
[1741703504736,37.25520061,120.46,120.37,59.48]
[1741703504932,37.25520061,120.42,120.32,4.088]
[1741703505237,37.25520061,120.36,120.27,59.46]
[1741703505438,37.25520061,120.34,120.25,8.4836]
[1741703505735,37.25520061,120.32,120.23,59.44]
[1741703505938,37.25520061,120.28,120.16,37.25520061]
[1741703506237,37.25520061,120.26,120.16,59.44]
[1741703506438,37.25520061,120.26,120.16,67.764]
[1741703506632,37.25520061,120.26,120.16,59.44]
[1741703506834,37.25520061,120.26,120.14,37.25520061]
[1741703507041,37.31718054,120.22,120.13,76.4108]
[1741703507233,37.31718054,120.22,120.13,68.0843]
[1741703507432,37.25520061,120.24,120.13,68.0843]
[1741703507828,8.3157,120.29,120.2,37.25520061]
[1741703508136,37.25520061,120.3,120.21,59.46]
[1741703508437,0.05370772,120.26,120.23,0.05305166]
[1741703509135,0.05370772,120.26,120.23,8.37275166]
[1741703509330,0.05370772,120.26,120.23,0.05305166]
[1741703510537,4.232,120.31,120.24,37.25520061]
[1741703510740,8.3163,120.28,120.23,8.37255166]
[1741703510935,4.232,120.31,120.21,8.6364]
[1741703511137,4.232,120.31,120.2,96.71520061]
[1741703511538,4.232,120.31,120.22,37.25520061]
[1741703511742,4.232,120.31,120.26,8.3175]
[1741703512037,4.2815,120.32,120.25,59.46]
[1741703512344,4.225,120.35,120.28,37.25520061]
[1741703512543,37.25520061,120.4,120.3,37.25520061]
[1741703512742,37.25520061,120.33,120.19,191.0]
[1741703512941,37.25520061,120.33,120.2,37.25520061]
[1741703513244,37.25520061,120.29,120.19,191.0]
[1741703513544,37.25520061,120.27,120.17,59.46]
[1741703513741,96.71520061,120.29,120.17,59.46]
[1741703514541,8.3183,120.25,120.17,59.46]
[1741703514743,0.06321407,120.24,120.22,0.06088379]
[1741703514943,0.06321407,120.24,120.14,4.2384]
[1741703515148,37.25520061,120.22,120.14,4.2384]
[1741703515344,37.25520061,120.22,120.13,4.1518]
[1741703515540,37.25520061,120.2,120.11,59.46]
[1741703515746,37.25520061,120.2,120.1,59.46]
[1741703515942,4.3477,120.23,120.13,37.25520061]
[1741703516140,0.05853986,120.16,120.14,0.0565163]
[1741703516546,37.25520061,120.18,120.09,63.6984]
[1741703516846,0.0587674,120.16,120.09,63.6984]
[1741703517245,0.0587674,120.16,120.12,0.05667936]
[1741703517445,37.31396801,120.16,120.12,0.05667936]
[1741703517745,0.05611485,120.15,120.04,4.3174]
[1741703517947,37.25520061,120.1,119.97,126.75607135]
[1741703518143,37.25520061,120.08,119.97,89.50087074]
[1741703518341,37.25520061,120.06,119.97,89.50087074]
[1741703518745,37.25520061,120.08,119.97,89.50087074]
[1741703518947,0.06095706,120.03,120.0,0.05209674]
[1741703519245,0.06095706,120.03,119.97,126.75607135]
[1741703519439,0.06095706,120.03,120.0,0.05209674]
[1741703520945,8.39465706,120.03,120.0,0.05209674]
[1741703521141,0.06095706,120.03,120.0,0.05209674]
[1741703521348,37.25520061,120.02,119.91,37.25520061]
[1741703521542,37.25520061,119.98,119.88,96.75520061]
[1741703521748,37.25520061,119.96,119.88,59.5]
[1741703522342,37.25520061,119.94,119.83,72.2098]
[1741703522548,37.25520061,119.92,119.83,72.2098]
[1741703522740,37.25520061,119.92,119.83,67.8553]
[1741703522948,37.25520061,119.92,119.83,59.5]
[1741703523247,37.25520061,119.9,119.79,334.26]
[1741703523449,37.25520061,119.9,119.79,59.54]
[1741703523653,0.05992701,119.86,119.78,37.25520061]
[1741703523842,0.05992701,119.86,119.78,96.79520061]
[1741703524046,37.25520061,119.88,119.78,96.79520061]
[1741703524246,0.05435634,119.83,119.73,37.25520061]
[1741703524548,37.25520061,119.82,119.72,67.8052]
[1741703524742,8.3511,119.78,119.72,8.2852]
[1741703525054,37.25520061,119.82,119.72,4.0857]
[1741703525055,0.06039532,119.79,119.72,4.0857]
[1741703525253,4.2452,119.85,119.77,37.25520061]
[1741703525549,4.2452,119.85,119.77,59.52]
[1741703525749,0.05484695,119.82,119.77,59.52]
[1741703526054,0.05484695,119.82,119.7,511.46563987]
[1741703526255,0.05484695,119.82,119.72,37.56513987]
[1741703526588,37.56513987,119.81,119.71,59.58]
[1741703526749,0.05632519,119.78,119.71,59.58]
[1741703527653,4.3168,119.88,119.76,75.13027974]
[1741703527849,4.3168,119.88,119.77,97.14513987]
[1741703528046,37.56513987,119.87,119.78,59.58]
[1741703528250,4.3168,119.88,119.79,37.56513987]
[1741703528447,4.3967,119.9,119.84,8.3466]
[1741703528748,8.3595,119.96,119.85,97.14513987]
[1741703528948,8.3595,119.96,119.86,59.65632519]
[1741703529147,37.56513987,119.91,119.81,97.16513987]
[1741703529347,59.6,119.94,119.83,37.56513987]
[1741703529548,8.3595,119.96,119.85,37.56513987]
[1741703529748,8.3595,119.96,119.86,59.6]
[1741703529954,37.56513987,119.95,119.86,59.6]
[1741703530151,0.0527165,119.92,119.9,0.06143887]
[1741703530549,37.56513987,120.0,119.9,0.06143887]
[1741703530745,37.56513987,120.0,119.91,59.6]
[1741703530950,37.56513987,119.96,119.87,59.6]
[1741703531255,37.56513987,120.0,119.87,97.16513987]
[1741703531450,37.56513987,120.0,119.89,37.56513987]
[1741703531652,8.3372,119.98,119.9,8.3425]
[1741703531957,0.06057976,119.95,119.92,0.06060794]
[1741703532157,4.2641,120.03,119.93,37.56513987]
[1741703532855,4.2641,120.03,119.92,59.62]
[1741703533056,4.2641,120.03,119.95,37.56513987]
[1741703533248,4.0954,120.05,119.95,37.56513987]
[1741703533449,0.05962414,119.99,119.97,8.3375]
[1741703533656,0.05962414,119.99,119.97,97.16513987]
[1741703533854,37.56513987,120.02,119.9,8.5552]
[1741703534047,8.3381,119.97,119.9,16.8976]
[1741703534252,0.05264401,119.99,119.95,0.05641691]
[1741703534459,37.56513987,120.01,119.95,0.05641691]
[1741703534654,0.05565998,119.98,119.91,37.48193619]
[1741703534860,0.05565998,119.98,119.97,0.06335538]
[1741703535158,0.05565998,119.98,119.93,59.6]
[1741703535359,37.48193619,120.0,119.9,4.3774]
[1741703535658,0.05666775,119.97,119.96,7.35e-05]
[1741703536057,0.05666775,119.97,119.91,37.48193619]
[1741703536250,0.05666775,119.97,119.93,37.48193619]
[1741703536559,4.0954,120.05,119.95,37.48193619]
[1741703536757,41.54453619,120.1,119.99,37.48193619]
[1741703536954,4.0626,120.1,119.99,37.48193619]
[1741703537156,63.8509,120.13,120.01,37.48193619]
[1741703537355,275.1,120.14,120.03,37.48193619]
[1741703537562,37.48193619,120.11,120.02,63.6086]
[1741703537761,0.05934952,120.1,120.07,0.06212972]
[1741703538059,37.48193619,120.09,119.95,8.4374]
[1741703538363,37.48193619,120.06,119.95,8.4374]
[1741703539065,59.6,120.07,119.95,45.91933619]
[1741703539256,0.05931823,120.02,119.99,0.06144595]
[1741703539651,37.48193619,120.0,119.92,4.0086]
[1741703539850,37.48193619,119.98,119.85,37.48193619]
[1741703540055,37.48193619,119.96,119.86,61.12119766]
[1741703540251,0.05456682,119.93,119.86,59.6]
[1741703540465,0.05456682,119.93,119.85,37.48193619]
[1741703540657,0.05456682,119.93,119.87,37.48193619]
[1741703540958,8.3372,119.98,119.89,37.48193619]
[1741703541164,63.6709,120.01,119.89,37.48193619]
[1741703541165,63.6709,120.01,119.91,37.48193619]
[1741703541359,0.05339788,119.95,119.93,37.48193619]
[1741703541656,0.05339788,119.95,119.92,59.63918486]
[1741703542360,0.05339788,119.95,119.92,0.05918486]
[1741703543062,8.39279788,119.95,119.92,0.05918486]
[1741703543463,0.05339788,119.95,119.92,0.05918486]
[1741703544764,8.3398,119.94,119.92,0.05918486]
[1741703544960,0.05339788,119.95,119.92,0.05918486]
[1741703545261,142.59557699,120.13,119.92,0.05918486]
[1741703545262,334.66,120.11,119.94,37.48193619]
[1741703545465,4.0569,120.06,119.94,37.48193619]
[1741703545761,4.4242,120.1,120.0,37.48193619]
[1741703545960,4.4242,120.1,120.02,37.48193619]
[1741703546162,41.82733619,120.15,120.04,37.48193619]
[1741703546370,0.05587863,120.07,120.05,59.63275389]
[1741703546766,41.82733619,120.15,120.05,59.58]
[1741703547070,0.06164478,120.07,120.06,37.48193619]
[1741703547270,8.3283,120.11,120.05,59.58]
[1741703547467,4.3454,120.15,120.04,97.06193619]
[1741703547861,63.9254,120.15,120.04,97.06193619]
[1741703548065,101.40733619,120.15,120.04,97.06193619]
[1741703548274,37.48193619,120.13,120.04,59.58]
[1741703548465,0.06349518,120.11,120.08,0.05842411]
[1741703548776,101.35733619,120.21,120.1,37.48193619]
[1741703549067,283.5982,120.23,120.12,37.48193619]
[1741703549973,0.05749497,120.19,120.16,0.06333202]
[1741703550374,0.05749497,120.19,120.16,37.54526821]
[1741703550570,4.2954,120.27,120.18,37.48193619]
[1741703550876,4.0498,120.28,120.2,37.48193619]
[1741703551075,37.48193619,120.31,120.2,97.04193619]
[1741703551369,37.48193619,120.29,120.17,59.56]
[1741703551675,37.48193619,120.29,120.17,97.04193619]
[1741703551865,0.0630422,120.24,120.22,0.0597533]
[1741703552263,37.48193619,120.27,120.22,0.0597533]
[1741703552467,37.48193619,120.23,120.1,41.84713619]
[1741703552670,37.48193619,120.2,120.1,4.3652]
[1741703552972,37.48193619,120.2,120.08,97.04193619]
[1741703553476,101.34003619,120.22,120.1,37.48193619]
[1741703553672,0.05503118,120.15,120.13,0.05782851]
[1741703554071,37.48193619,120.18,120.08,59.56]
[1741703554374,0.05456724,120.15,120.13,0.05592606]
[1741703556867,0.05456724,120.15,120.04,37.48193619]
[1741703557067,0.05456724,120.15,120.0,279.56271694]
[1741703557068,37.48193619,120.09,120.0,279.56271694]
[1741703557268,37.48193619,120.09,119.98,59.52]
[1741703557472,59.52,120.1,119.98,59.52]
[1741703557473,8.3336,120.03,119.98,59.52]
[1741703557670,37.48193619,120.07,119.98,59.52]
[1741703557868,8.3349,120.01,119.98,59.52]
[1741703558071,97.00193619,120.05,119.95,4.3047]
[1741703558269,37.48193619,120.03,119.93,59.52]
[1741703558471,37.48193619,120.01,119.92,90.28788655]
[1741703558878,37.48193619,119.99,119.92,90.28788655]
[1741703559278,59.52,120.0,119.92,90.28788655]
[1741703559679,0.06250501,119.97,119.94,0.05308307]
[1741703560476,0.06250501,119.97,119.94,37.53501926]
[1741703560774,37.48193619,120.07,119.96,37.48193619]
[1741703560980,59.52,120.09,119.98,37.48193619]
[1741703561175,37.48193619,120.07,119.97,59.52]
[1741703561386,37.48193619,120.03,119.93,4.0798]
[1741703561683,97.00193619,120.09,119.98,37.48193619]
[1741703561981,0.0536005,119.99,119.97,0.05912451]
[1741703562171,37.48193619,120.03,119.92,105.52593619]
[1741703562376,0.06174026,119.99,119.97,0.05840598]
[1741703563181,0.06174026,119.99,119.98,8.337]
[1741703563379,63.7174,120.08,119.98,37.48193619]
[1741703563582,4.1774,120.08,119.98,37.48193619]
[1741703563781,41.65933619,120.08,119.98,37.48193619]
[1741703563982,41.65933619,120.08,119.97,59.54]
[1741703564178,37.48193619,120.06,119.99,8.3362]
[1741703564383,37.48193619,120.06,119.97,59.54]
[1741703564575,59.54,120.05,119.93,59.54]
[1741703564777,37.54152925,120.04,119.94,8.3396]
[1741703564982,37.48193619,120.04,119.93,59.54]
[1741703565286,8.3386,119.96,119.87,37.48193619]
[1741703565485,37.48193619,119.98,119.87,37.48193619]
[1741703565682,59.54,119.99,119.89,37.48193619]
[1741703565890,59.54,119.99,119.87,37.48193619]
[1741703566093,0.06190641,119.93,119.91,0.05892826]
[1741703566485,41.64913619,119.98,119.86,4.2598]
[1741703566680,0.05372012,119.93,119.91,0.06013388]
[1741703567186,0.05704836,119.93,119.91,0.06013388]
[1741703567393,0.05704836,119.93,119.92,8.3412]
[1741703567691,0.05704836,119.93,119.91,0.06013388]
[1741703568985,0.05704836,119.93,119.92,8.3412]
[1741703569189,0.05704836,119.93,119.91,0.06013388]
[1741703569389,0.05704836,119.93,119.91,8.40183388]
[1741703569586,0.05704836,119.93,119.91,0.06013388]
[1741703569986,59.54,119.99,119.91,0.06013388]
[1741703569987,4.2283,120.01,119.91,37.54207007]
[1741703570196,4.3515,120.02,119.93,37.48193619]
[1741703570382,4.3515,120.02,119.96,8.3382]
[1741703570586,4.3515,120.02,119.93,37.48193619]
[1741703571291,0.05657417,119.99,119.96,0.0547008]
[1741703574192,8.3374,119.98,119.96,0.0547008]
[1741703574392,0.05657417,119.99,119.96,0.0547008]
[1741703575187,0.05657417,119.99,119.97,8.3373]
[1741703575383,0.05657417,119.99,119.96,0.0547008]
[1741703575794,8.3374,119.98,119.96,0.0547008]
[1741703576091,0.05657417,119.99,119.96,0.0547008]
[1741703577586,8.3377,119.97,119.96,0.0547008]
[1741703577784,0.05657417,119.99,119.87,41.55263619]
[1741703578087,37.48193619,119.98,119.87,101.11263619]
[1741703578284,41.80303619,119.98,119.87,101.11263619]
[1741703578590,41.80303619,119.98,119.88,8.3435]
[1741703578796,41.80303619,119.98,119.87,97.04193619]
[1741703578998,0.05633595,119.94,119.92,0.05916908]
[1741703579697,8.3405,119.93,119.92,0.05916908]
[1741703580085,0.05633595,119.94,119.92,0.05916908]
[1741703580286,0.05633595,119.94,119.92,6.908e-05]
[1741703580796,8.3405,119.93,119.92,6.908e-05]
[1741703581000,0.05633595,119.94,119.92,6.908e-05]
[1741703581194,8.3405,119.93,119.92,6.908e-05]
[1741703582294,0.05633595,119.94,119.92,6.908e-05]
[1741703582899,8.3405,119.93,119.92,6.908e-05]
[1741703583301,2.5,119.93,119.8,97.04193619]
[1741703583499,37.48193619,119.9,119.78,97.04193619]
[1741703583692,37.48193619,119.86,119.77,4.2466]
[1741703583898,37.48193619,119.86,119.74,97.04193619]
[1741703584291,59.56,119.85,119.74,97.04193619]
[1741703584498,8.3507,119.79,119.72,137.69328739]
[1741703584699,0.05283268,119.81,119.74,37.48193619]
[1741703584899,63.9142,119.85,119.78,0.05342434]
[1741703585194,0.05494374,119.79,119.78,0.05342434]
[1741703585401,63.9142,119.85,119.78,0.05342434]
[1741703585601,0.05474385,119.8,119.78,0.05342434]
[1741703585800,63.9142,119.85,119.78,0.05342434]
[1741703586007,0.05498507,119.8,119.78,0.05342434]
[1741703586194,37.48193619,119.82,119.78,2.434e-05]
[1741703586396,0.05683698,119.8,119.78,2.434e-05]
[1741703587193,0.05683698,119.8,119.79,59.58]
[1741703587402,275.24,119.92,119.79,59.58]
[1741703587602,8.3421,119.91,119.85,8.3455]
[1741703587799,37.48193619,119.92,119.8,8.2583]
[1741703588000,8.1923,119.93,119.81,37.48193619]
[1741703588201,8.1923,119.93,119.83,37.48193619]
[1741703588400,8.1923,119.93,119.85,37.48193619]
[1741703588401,4.1529,119.93,119.85,37.48193619]
[1741703588706,4.1064,119.94,119.83,97.06193619]
[1741703588707,8.3387,119.96,119.91,8.3416]
[1741703588906,275.24,119.97,119.87,37.54183665]
[1741703589206,0.05249906,119.9,119.85,37.48193619]
[1741703589405,97.06193619,119.94,119.91,8.004e-05]
[1741703589602,37.48193619,119.92,119.81,37.48193619]
[1741703589796,4.1615,119.91,119.83,37.48193619]
[1741703589997,59.58,119.94,119.83,37.48193619]
[1741703590197,4.1615,119.93,119.83,37.48193619]
[1741703590705,0.056696,119.89,119.87,0.06287279]
[1741703591009,275.24,119.97,119.88,37.48193619]
[1741703591203,63.6194,119.98,119.87,0.06287279]
[1741703591404,63.6194,119.98,119.87,37.48193619]
[1741703591603,63.6194,119.98,119.89,37.48193619]
[1741703591805,101.10133619,119.98,119.87,37.48193619]
[1741703592201,101.10133619,119.98,119.91,0.0601937]
[1741703592401,0.05321977,119.94,119.91,0.0601937]
[1741703592802,0.05321977,119.94,119.91,97.12212989]
[1741703593007,0.05321977,119.94,119.93,37.48193619]
[1741703593304,0.05321977,119.94,119.91,59.6401937]
[1741703593498,0.05321977,119.94,119.91,0.0601937]
[1741703593701,8.3412,119.92,119.91,9.37e-05]
[1741703594304,45.82313619,119.92,119.91,9.37e-05]
[1741703594705,49.90203619,119.92,119.91,9.37e-05]
[1741703594901,8.3407,119.93,119.91,9.37e-05]
[1741703595104,4.43981977,119.94,119.91,9.37e-05]
[1741703595411,0.05321977,119.94,119.91,9.37e-05]
[1741703595613,0.05321977,119.94,119.91,37.48202989]
[1741703595907,0.05321977,119.94,119.91,9.37e-05]
[1741703596108,0.05321977,119.94,119.93,37.48193619]
[1741703596308,59.58,120.03,119.93,97.06193619]
[1741703596499,59.58,120.03,119.95,37.48193619]
[1741703596699,8.6027,120.04,119.95,37.48193619]
[1741703596902,8.6027,120.04,119.99,8.3362]
[1741703597207,4.3534,120.04,119.97,37.48193619]
[1741703597609,0.05435866,120.02,119.99,0.05434699]
[1741703597809,37.48193619,120.0,119.87,37.48193619]
[1741703598013,37.48193619,120.0,119.85,59.56]
[1741703598014,37.48193619,119.95,119.86,4.2862]
[1741703598412,37.48193619,119.95,119.85,59.56]
[1741703598614,37.48193619,119.93,119.85,59.56]
[1741703598811,37.48193619,119.93,119.81,37.48193619]
[1741703599003,0.05727303,119.9,119.88,0.06078757]
[1741703600317,8.3143,119.99,119.88,37.54272376]
[1741703600614,43.58495675,119.98,119.88,37.48193619]
[1741703600811,41.49993619,119.98,119.88,37.48193619]
[1741703601006,4.018,119.98,119.92,8.3409]
[1741703601214,4.018,119.98,119.9,37.48193619]
[1741703601510,0.06116071,119.95,119.94,37.48193619]
[1741703601909,0.05841192,119.96,119.94,37.48193619]
[1741703602215,2.08417409,120.03,119.94,37.48193619]
[1741703602411,0.05263393,119.96,119.94,0.05685839]
[1741703602611,41.84353619,120.04,119.92,97.04193619]
[1741703602813,0.05860299,119.96,119.94,0.05757099]
[1741703603114,4.3616,120.04,119.94,74.96387238]
[1741703603312,8.3364,119.99,119.95,4.1925]
[1741703603517,101.40353619,120.04,119.92,59.56]
[1741703603817,101.40353619,120.04,119.93,37.48193619]
[1741703604017,2.08418483,120.03,119.95,37.48193619]
[1741703604312,0.06013771,120.0,119.97,37.5459242]